bitfinex-derivatives/quotes_ETHF0:USTF0_20260310
["timestamp","ask_amount","ask_price","bid_price","bid_amount"]
[1773121182993,4.32556086,2042.3,2041.5,2.68552222]
[1773121183198,4.32556086,2042.3,2041.6,4.13581442]
[1773121183895,4.32556086,2042.5,2041.8,4.13581442]
[1773121184087,0.00544176,2042.5,2042.0,4.13581442]
[1773121184798,4.33100262,2042.5,2042.0,4.13581442]
[1773121185998,0.00544176,2042.5,2042.0,4.13581442]
[1773121187501,4.32556086,2042.8,2042.0,4.13581442]
[1773121188395,4.33150415,2042.8,2042.0,4.13581442]
[1773121189200,2.68552222,2042.7,2042.0,4.13581442]
[1773121189499,4.32556086,2042.6,2042.0,4.13581442]
[1773121200807,4.44920641,2042.7,2042.1,4.39143902]
[1773121205308,2.68552222,2042.6,2041.8,2.68552222]
[1773121205506,2.68552222,2042.1,2041.6,4.35292814]
[1773121205710,4.10132325,2042.2,2041.6,4.35292814]
[1773121206211,4.10132325,2041.9,2041.4,4.35856367]
[1773121206814,4.10132325,2041.9,2041.0,0.24496]
[1773121206815,2.68552222,2041.8,2041.2,4.35292814]
[1773121207115,4.10132325,2042.1,2041.4,2.68552222]
[1773121207308,4.10132325,2042.1,2041.5,4.35292814]
[1773121207710,4.10132325,2042.1,2041.5,4.35830898]
[1773121210917,4.10132325,2042.1,2041.6,2.68552222]
[1773121211112,4.10132325,2042.1,2041.7,4.35292814]
[1773121212916,4.10132325,2042.5,2041.7,4.35292814]
[1773121213816,4.10132325,2042.4,2041.7,4.35292814]
[1773121216616,4.10132325,2042.4,2041.5,0.00538084]
[1773121216816,4.10132325,2042.3,2041.6,4.35292814]
[1773121218708,4.10132325,2042.3,2041.5,4.35830898]
[1773121223218,4.10132325,2042.3,2041.5,0.00538084]
[1773121223422,4.10132325,2042.3,2041.5,4.35830898]
[1773121229720,4.10132325,2042.0,2041.5,4.35830898]
[1773121230718,2.68605982,2041.9,2041.1,4.35292814]
[1773121230917,4.10132325,2041.8,2041.1,4.35292814]
[1773121231722,4.10132325,2042.0,2041.1,4.35909701]
[1773121244632,3.85841637,2041.5,2040.8,3.56929871]
[1773121245233,3.85841637,2041.8,2040.8,3.56929871]
[1773121245830,3.85841637,2041.8,2041.0,3.5604523]
[1773121254936,3.85841637,2041.8,2040.8,3.81531699]
[1773121255143,3.85841637,2041.7,2040.9,3.80903263]
[1773121260845,3.85841637,2041.7,2041.0,0.24496]
[1773121261050,3.85841637,2041.7,2041.1,3.55038656]
[1773121268752,6.09837363,2042.4,2041.0,0.24496]
[1773121268753,4.04383119,2042.5,2041.3,3.8349318]
[1773121268959,4.04383119,2042.5,2042.0,6.52099162]
[1773121269154,4.04383119,2042.5,2042.1,3.8349318]
[1773121269358,1.55395087,2042.5,2042.1,3.8349318]
[1773121269654,4.04383119,2042.7,2042.1,3.8349318]
[1773121274059,0.00594329,2042.8,2042.5,3.8349318]
[1773121274260,0.00594329,2042.8,2042.5,3.83979443]
[1773121274562,4.04977448,2042.8,2042.5,0.00486263]
[1773121274759,4.04977448,2042.8,2042.5,3.83979443]
[1773121275161,4.04383119,2043.2,2042.6,2.68482754]
[1773121275362,4.04383119,2043.2,2042.7,3.8349318]
[1773121276355,4.04837298,2043.2,2042.7,3.8349318]
[1773121276561,0.00454179,2043.2,2042.7,3.8349318]
[1773121276755,4.04837298,2043.2,2042.7,3.8349318]
[1773121279166,0.00454179,2043.2,2042.7,3.8349318]
[1773121279664,4.04837298,2043.2,2042.7,3.8349318]
[1773121290874,4.04837298,2043.2,2042.5,3.83979443]
[1773121291271,4.04383119,2043.0,2042.5,3.83979443]
[1773121292476,4.04383119,2042.6,2042.3,3.8349318]
[1773121292969,4.04383119,2042.5,2042.0,3.8349318]
[1773121293578,4.04383119,2042.5,2042.0,3.83878245]
[1773121294075,4.09307414,2042.8,2042.1,4.28822084]
[1773121295772,2.68482754,2042.7,2042.1,4.28822084]
[1773121296175,4.09307414,2042.6,2042.1,4.28822084]
[1773121301778,4.09307414,2042.5,2042.1,4.28822084]
[1773121301980,4.09307414,2042.5,2042.0,4.29207149]
[1773121305483,4.09307414,2042.7,2042.0,4.29207149]
[1773121305883,4.09307414,2042.6,2042.0,4.29207149]
[1773121308787,2.68482754,2042.7,2042.0,4.29207149]
[1773121308986,4.09307414,2042.7,2042.0,4.29207149]
[1773121315088,4.15810078,2042.6,2042.0,4.29207149]
[1773121337505,7.90976427,2043.0,2042.2,3.80691177]
[1773121337801,3.8279674,2042.9,2042.3,3.80691177]
[1773121338802,3.8279674,2043.1,2042.3,3.80691177]
[1773121345307,3.8279674,2043.1,2042.2,3.80691177]
[1773121350814,7.2969674,2043.1,2042.2,3.80691177]
[1773121351017,3.8279674,2043.0,2042.2,3.80691177]
[1773121355624,3.8279674,2043.0,2042.3,3.84941148]
[1773121356528,3.95469612,2043.2,2042.3,3.84941148]
[1773121356728,2.68510315,2043.1,2042.2,3.84941148]
[1773121356938,3.95015433,2043.0,2042.2,3.84941148]
[1773121360823,3.95015433,2043.0,2042.3,0.2448]
[1773121361028,3.95469612,2043.2,2042.5,3.84941148]
[1773121390160,3.7529859,2043.0,2042.5,3.84941148]
[1773121394059,3.7529859,2043.1,2042.5,3.84941148]
[1773121400260,3.7529859,2043.1,2042.6,3.63748948]
[1773121403063,0.00454179,2043.2,2042.6,3.63748948]
[1773121403965,0.00454179,2043.2,2042.8,3.63748948]
[1773121404161,3.75752769,2043.2,2042.8,3.63748948]
[1773121404459,3.7529859,2043.6,2042.9,3.63748948]
[1773121404662,5.98666488,2043.5,2042.9,3.63748948]
[1773121404861,3.7529859,2043.5,2042.9,3.63748948]
[1773121405167,3.7529859,2043.7,2043.1,3.63748948]
[1773121405367,3.7529859,2043.5,2043.1,3.63748948]
[1773121405961,3.7529859,2043.5,2043.2,3.63748948]
[1773121406465,3.7529859,2043.9,2043.4,3.63748948]
[1773121406767,4.09999933,2044.0,2043.0,3.63748948]
[1773121406768,2.68408549,2043.5,2043.0,3.63748948]
[1773121407067,3.7529859,2043.4,2043.0,44.43748948]
[1773121407560,3.7574184,2043.4,2043.1,3.63748948]
[1773121409866,4.09999933,2044.0,2043.1,3.63748948]
[1773121410161,3.7529859,2044.7,2044.0,3.63748948]
[1773121410367,4.09999933,2044.8,2044.5,3.63748948]
[1773121410562,3.7529859,2045.4,2044.7,3.50885348]
[1773121410764,3.7529859,2045.0,2044.3,18.28885348]
[1773121410963,3.75918879,2045.0,2044.4,3.50885348]
[1773121411166,1.54959703,2044.9,2044.4,3.50885348]
[1773121411771,3.7529859,2044.6,2044.1,3.63748948]
[1773121412766,3.7529859,2044.4,2044.1,0.00377613]
[1773121412973,3.7529859,2044.4,2043.7,18.41948948]
[1773121413173,3.7529859,2044.2,2043.7,3.63748948]
[1773121413474,3.7529859,2044.2,2043.5,3.63748948]
[1773121413665,4.16412802,2044.0,2043.5,3.63748948]
[1773121413870,4.16412802,2044.0,2043.5,3.64334064]
[1773121414972,2.68408549,2043.7,2043.1,4.06990907]
[1773121415277,4.16412802,2043.6,2043.1,4.06990907]
[1773121415468,5.71372505,2043.7,2043.3,4.06990907]
[1773121415674,4.16412802,2043.8,2043.3,4.06990907]
[1773121416271,4.16412802,2043.8,2043.3,4.07586478]
[1773121417171,1.54542919,2043.7,2043.5,4.06990907]
[1773121417376,4.16412802,2043.9,2043.5,4.06990907]
[1773121417576,5.70955721,2043.8,2043.5,4.06990907]
[1773121417875,4.16412802,2043.8,2043.5,4.06990907]
[1773121420472,4.16412802,2043.8,2043.4,6.75399456]
[1773121420679,1.54542919,2043.7,2043.4,6.75399456]
[1773121421069,5.70955721,2043.7,2043.4,2.68408549]
[1773121421274,4.16412802,2043.6,2043.4,2.68408549]
[1773121421772,1.24063088,2043.7,2043.5,4.06990907]
[1773121422280,4.16412802,2043.6,2043.4,6.75399456]
[1773121422479,5.4047589,2043.7,2043.4,6.75399456]
[1773121424979,1.24063088,2043.7,2043.5,4.06990907]
[1773121427178,5.4047589,2043.7,2043.5,4.06990907]
[1773121427482,5.4047589,2043.7,2043.4,2.68408549]
[1773121427682,5.4047589,2043.7,2043.4,6.75399456]
[1773121429681,4.34072492,2043.6,2043.3,0.00595571]
[1773121430176,4.34072492,2043.6,2043.3,4.15606093]
[1773121430379,5.5813558,2043.7,2043.3,4.15606093]
[1773121432185,4.34072492,2043.7,2043.3,4.15606093]
[1773121432787,4.34072492,2043.5,2043.3,0.00595571]
[1773121433089,4.34704404,2043.5,2043.3,0.00595571]
[1773121433281,4.34704404,2043.5,2043.2,4.15010522]
[1773121433686,4.34072492,2043.4,2043.1,4.15010522]
[1773121434185,4.34072492,2043.4,2043.1,4.15558903]
[1773121435488,5.58767492,2043.5,2043.1,4.15558903]
[1773121435890,1.24695,2043.5,2043.1,4.15558903]
[1773121436188,1.24695,2043.5,2043.2,2.68408549]
[1773121436386,1.24695,2043.5,2043.3,4.15010522]
[1773121436786,5.58767492,2043.5,2043.2,6.83419071]
[1773121437086,5.58767492,2043.5,2043.2,4.15010522]
[1773121438387,4.34072492,2043.4,2042.9,10.2966301]
[1773121438586,1.24695,2043.5,2042.9,10.2966301]
[1773121438587,4.34072492,2043.2,2042.9,10.2966301]
[1773121439392,4.34072492,2043.2,2042.9,10.30046303]
[1773121440692,4.34072492,2043.2,2042.9,4.15393815]
[1773121440894,4.34072492,2043.2,2042.9,0.00383293]
[1773121441188,4.34072492,2043.0,2042.6,10.2966301]
[1773121441394,4.34072492,2043.0,2042.7,4.15010522]
[1773121441589,4.34072492,2043.0,2042.7,44.95010522]
[1773121441988,4.34072492,2043.0,2042.7,4.15443371]
[1773121442188,4.34072492,2043.3,2042.9,4.15010522]
[1773121442388,4.34072492,2043.2,2042.9,4.15010522]
[1773121443087,5.5813558,2043.3,2042.9,4.15010522]
[1773121443394,4.34072492,2043.4,2042.9,4.15010522]
[1773121443595,4.34072492,2043.4,2042.8,2.68408549]
[1773121443993,4.34072492,2043.4,2042.7,10.47791276]
[1773121444590,4.34072492,2043.4,2042.8,4.32705939]
[1773121444895,4.34072492,2043.4,2042.7,6.15085337]
[1773121445188,4.34072492,2043.4,2042.7,10.47791276]
[1773121446390,4.34072492,2043.4,2042.8,4.32705939]
[1773121447096,4.34072492,2043.4,2042.7,6.15085337]
[1773121447295,4.34072492,2043.4,2042.7,10.47791276]
[1773121447492,4.3993018,2043.1,2042.5,6.14652488]
[1773121447793,4.3993018,2043.0,2042.5,4.32705939]
[1773121448491,4.3993018,2043.0,2042.5,4.33333979]
[1773121449496,4.3993018,2043.0,2042.5,0.0062804]
[1773121449695,4.3993018,2043.0,2042.5,4.33333979]
[1773121451701,4.3993018,2043.0,2042.5,0.0062804]
[1773121452596,4.3993018,2042.9,2042.5,0.0062804]
[1773121461002,4.3993018,2042.7,2042.5,0.0062804]
[1773121463506,4.3993018,2042.7,2042.0,6.14652488]
[1773121463706,4.3993018,2042.5,2041.9,4.32705939]
[1773121464005,4.3993018,2042.3,2041.9,4.32705939]
[1773121464200,4.3993018,2042.2,2041.8,2.68423246]
[1773121464508,4.3993018,2042.2,2041.5,4.32705939]
[1773121464709,7.525,2042.1,2041.6,4.32705939]
[1773121465107,4.3993018,2042.2,2041.6,4.32705939]
[1773121465309,11.9253018,2042.2,2041.6,4.32705939]
[1773121465508,11.9253018,2042.2,2041.6,4.33140404]
[1773121466010,4.3993018,2042.1,2041.6,4.33140404]
[1773121467711,4.3993018,2042.1,2041.6,0.00434465]
[1773121470010,4.3993018,2042.1,2041.6,4.33140404]
[1773121470203,11.9363018,2042.2,2041.7,4.32705939]
[1773121470407,4.3993018,2042.1,2041.7,4.32705939]
[1773121474517,11.85491548,2042.2,2041.7,4.32705939]
[1773121475019,4.31391548,2042.1,2041.6,4.55695466]
[1773121477417,4.31391548,2042.1,2041.3,4.79753001]
[1773121478521,4.31391548,2042.1,2041.3,4.80389053]
[1773121480622,4.31391548,2042.1,2041.3,4.55897053]
[1773121481528,4.31391548,2042.1,2041.3,0.00636052]
[1773121482528,4.31391548,2042.1,2041.0,10.69913489]
[1773121482728,4.31391548,2042.1,2041.0,4.55261001]
[1773121483625,4.31391548,2042.1,2041.0,4.55802458]
[1773121483825,4.31391548,2042.1,2041.0,0.00541457]
[1773121484026,4.31391548,2041.8,2040.8,4.55261001]
[1773121484328,4.31391548,2041.6,2040.8,4.55261001]
[1773121485029,11.87984873,2041.6,2041.0,4.55261001]
[1773121485432,4.31391548,2041.5,2041.0,4.55261001]
[1773121488831,4.31391548,2041.4,2041.0,4.55261001]
[1773121493735,7.572,2041.5,2041.0,4.55261001]
[1773121493931,11.84502127,2041.5,2041.0,4.55261001]
[1773121494128,4.27302127,2041.4,2041.0,4.55261001]
[1773121495636,4.27302127,2041.4,2040.9,4.22926459]
[1773121495939,4.27302127,2041.4,2040.8,4.23559381]
[1773121496230,4.27302127,2041.4,2040.8,0.00632922]
[1773121496636,4.27302127,2041.4,2040.8,4.23559381]
[1773121497839,4.27302127,2041.4,2040.8,0.00632922]
[1773121500738,4.27302127,2041.2,2040.8,4.23559381]
[1773121503238,7.587,2041.1,2040.8,4.23559381]
[1773121503638,11.68569895,2041.1,2040.8,4.23559381]
[1773121504740,7.587,2041.1,2040.8,4.23559381]
[1773121505140,11.68569895,2041.1,2040.8,4.23559381]
[1773121505339,4.1026322,2041.6,2040.8,4.23559381]
[1773121505534,7.59393325,2041.6,2040.9,4.11179312]
[1773121505849,4.09869895,2041.5,2040.9,4.11179312]
[1773121506838,4.09869895,2041.5,2040.8,0.00632922]
[1773121507840,4.09869895,2041.5,2040.4,11.0767449]
[1773121508045,4.09869895,2041.5,2040.5,4.11179312]
[1773121508347,4.09869895,2041.3,2040.5,4.11179312]
[1773121508851,4.09869895,2041.3,2040.5,4.11670071]
[1773121515156,4.09869895,2041.1,2040.5,4.11670071]
[1773121515357,4.09869895,2041.1,2040.6,4.11179312]
[1773121517060,4.09869895,2041.1,2040.5,6.15143247]
[1773121517262,4.09869895,2041.1,2040.5,10.26322559]
[1773121517860,4.09869895,2041.1,2040.6,4.11179312]
[1773121518357,4.09869895,2040.9,2040.6,4.11179312]
[1773121521365,0.00393325,2041.6,2040.9,4.11179312]
[1773121521366,4.1026322,2041.6,2040.9,4.11179312]
[1773121521562,4.1026322,2041.6,2041.1,4.11179312]
[1773121521766,4.09869895,2041.5,2040.9,4.11179312]
[1773121522963,4.09869895,2041.4,2041.1,4.11179312]
[1773121523365,11.70969895,2041.5,2041.1,4.11179312]
[1773121523755,0.00393325,2041.6,2041.1,4.11179312]
[1773121523956,4.1026322,2041.6,2041.1,4.11179312]
[1773121524160,4.09869895,2042.1,2041.6,4.11179312]
[1773121524463,4.09869895,2042.0,2041.6,4.11179312]
[1773121525160,4.10306245,2042.0,2041.6,4.11179312]
[1773121525566,0.00201635,2042.0,2041.6,4.11179312]
[1773121526866,4.09869895,2042.7,2042.0,4.11179312]
[1773121527464,4.09869895,2042.5,2042.0,4.11179312]
[1773121527662,4.09869895,2042.4,2042.0,4.11179312]
[1773121527863,4.09869895,2042.4,2042.0,4.11636707]
[1773121528265,0.00542877,2042.5,2042.0,4.11636707]
[1773121528471,4.10412772,2042.5,2042.0,4.11636707]
[1773121528670,4.09869895,2042.3,2041.7,4.11179312]
[1773121528966,4.09869895,2041.7,2041.2,4.11179312]
[1773121529465,7.616,2041.8,2041.2,4.11179312]
[1773121529669,11.71469895,2041.8,2041.2,4.11179312]
[1773121529970,4.09869895,2041.7,2041.2,4.11722874]
[1773121530270,7.616,2041.8,2041.2,4.11722874]
[1773121530470,4.09869895,2041.9,2041.2,4.11722874]
[1773121530771,11.71769895,2041.8,2041.2,4.11722874]
[1773121531566,4.09869895,2041.7,2041.2,4.11722874]
[1773121531970,7.619,2041.8,2041.2,4.11722874]
[1773121532174,4.09869895,2041.7,2041.2,4.11722874]
[1773121532866,4.09869895,2042.4,2041.2,4.11722874]
[1773121533072,4.09869895,2041.8,2041.2,4.11722874]
[1773121533265,4.09869895,2041.7,2041.2,4.11722874]
[1773121533465,4.09869895,2041.7,2041.2,0.00543562]
[1773121533671,4.09869895,2041.7,2041.0,4.29518452]
[1773121534670,4.09869895,2041.7,2041.0,0.00394127]
[1773121534864,4.46726286,2041.5,2041.0,4.29912579]
[1773121535064,4.46726286,2042.2,2041.0,4.29912579]
[1773121535267,4.46726286,2041.8,2041.0,4.29912579]
[1773121535468,4.46726286,2041.6,2041.0,4.29912579]
[1773121535669,4.46726286,2041.5,2041.0,4.29912579]
[1773121538777,4.46726286,2041.5,2041.0,0.00394127]
[1773121539573,4.46726286,2041.5,2040.7,4.29518452]
[1773121539779,4.46726286,2041.3,2040.5,4.29518452]
[1773121540074,4.03008109,2041.7,2040.4,5.11361142]
[1773121540075,4.46726286,2041.1,2040.4,5.11361142]
[1773121540270,4.46726286,2040.9,2040.4,5.11361142]
[1773121540580,4.46726286,2040.8,2040.4,5.11769783]
[1773121540871,7.64032926,2040.9,2040.4,5.11769783]
[1773121540872,0.00632926,2040.9,2040.4,5.11769783]
[1773121541075,12.09826286,2041.3,2040.4,5.11769783]
[1773121541275,12.09426286,2041.3,2040.5,4.29518452]
[1773121541673,4.46726286,2041.3,2040.5,4.29518452]
[1773121541874,12.09526286,2041.3,2040.5,4.29518452]
[1773121542074,12.09919935,2041.3,2040.5,4.29518452]
[1773121544480,12.10419935,2041.3,2040.5,4.29518452]
[1773121545080,4.46726286,2041.2,2040.5,4.29518452]
[1773121551084,4.46726286,2041.2,2040.6,4.30386113]
[1773121553078,0.00393649,2041.3,2040.6,4.30386113]
[1773121553380,0.00393649,2041.3,2040.7,4.30386113]
[1773121553682,0.00393649,2041.3,2040.7,13.39263086]
[1773121553683,3.94853099,2041.3,2040.7,13.39263086]
[1773121553873,3.94853099,2041.3,2040.8,4.30386113]
[1773121558086,3.94853099,2041.3,2040.8,10.46022125]
[1773121560485,3.94853099,2041.3,2040.8,4.30386113]
[1773121560884,3.94853099,2041.3,2040.6,6.15636012]
[1773121560885,4.26498035,2041.0,2040.6,6.15636012]
[1773121561285,4.26498035,2041.0,2040.5,6.15636012]
[1773121561483,4.26498035,2041.0,2040.4,0.82251331]
[1773121562088,4.26498035,2041.0,2040.4,5.06204749]
[1773121565981,4.28339426,2040.8,2040.4,5.06204749]
[1773121569186,4.28339426,2041.2,2040.5,2.68740961]
[1773121569483,4.28339426,2041.2,2040.6,3.99417055]
[1773121569790,0.00393649,2041.3,2040.8,3.99417055]
[1773121569791,4.28733075,2041.3,2040.8,3.99417055]
[1773121570489,0.00393649,2041.3,2040.8,3.99417055]
[1773121570689,4.28733075,2041.3,2040.8,3.99417055]
[1773121571794,4.28339426,2041.1,2040.6,10.15053067]
[1773121572090,4.28339426,2041.1,2040.7,3.99417055]
[1773121572292,4.28733075,2041.3,2040.8,3.99417055]
[1773121572490,7.671,2041.2,2040.8,3.99417055]
[1773121573098,11.95439426,2041.2,2040.8,3.99417055]
[1773121573393,4.28339426,2041.1,2040.8,3.99417055]
[1773121573888,4.28339426,2041.2,2040.8,3.99417055]
[1773121574093,0.00393649,2041.3,2041.0,3.99417055]
[1773121575294,4.28339426,2041.5,2041.1,2.68740961]
[1773121575492,4.28339426,2041.5,2041.2,3.99417055]
[1773121576195,4.28339426,2041.5,2041.0,3.99417055]
[1773121576390,4.28882843,2041.5,2041.0,3.99417055]
[1773121576586,4.28339426,2041.4,2041.0,3.99417055]
[1773121577790,7.68343417,2041.5,2041.0,3.99417055]
[1773121577990,11.96682843,2041.5,2041.0,3.99417055]
[1773121578295,11.96982843,2041.5,2041.0,3.99417055]
[1773121578695,11.97082843,2041.5,2041.0,3.99417055]
[1773121579388,11.97182843,2041.5,2041.0,3.99417055]
[1773121579592,4.28339426,2041.4,2041.0,3.99417055]
[1773121580194,11.97382843,2041.5,2041.0,3.99417055]
[1773121581494,11.97682843,2041.5,2041.0,3.99417055]
[1773121582690,4.28882843,2041.5,2041.0,3.99417055]
[1773121582894,11.97882843,2041.5,2041.0,3.99417055]
[1773121585196,11.97839426,2041.8,2041.1,3.99417055]
[1773121585396,4.28339426,2041.8,2041.1,3.99417055]
[1773121585692,4.28339426,2041.7,2041.1,3.99417055]
[1773121585898,4.28339426,2041.7,2041.0,3.99417055]
[1773121586300,4.287744,2041.7,2040.9,10.15053067]
[1773121586598,4.287744,2041.7,2040.8,3.99417055]
[1773121587400,4.287744,2041.7,2040.6,10.15053067]
[1773121587798,4.287744,2041.7,2040.7,3.99417055]
[1773121588502,4.28339426,2041.5,2040.8,3.99417055]
[1773121590901,4.22858297,2041.1,2040.4,0.82251331]
[1773121591101,4.22858297,2040.9,2040.4,4.81668386]
[1773121591294,11.93358297,2040.9,2040.4,4.81668386]
[1773121591500,4.21918331,2040.8,2040.4,4.81668386]
[1773121591694,4.21918331,2040.8,2040.4,0.82251331]
[1773121592299,4.21918331,2040.8,2040.4,4.81668386]
[1773121593602,4.21918331,2040.8,2040.4,0.82251331]
[1773121594706,4.03188562,2040.7,2040.4,4.80318458]
[1773121594903,11.74488562,2040.8,2040.4,4.80318458]
[1773121596408,4.03188562,2040.8,2040.4,4.80318458]
[1773121596602,11.74888562,2040.8,2040.4,4.80318458]
[1773121597308,4.03188562,2040.9,2040.4,4.80318458]
[1773121597511,11.74988562,2041.0,2040.4,4.80318458]
[1773121597709,11.75088562,2041.0,2040.4,4.80318458]
[1773121598509,4.03188562,2040.9,2040.4,4.80318458]
[1773121599609,11.75388562,2040.8,2040.4,4.80318458]
[1773121600810,4.03188562,2041.4,2040.4,4.80318458]
[1773121601110,4.03188562,2041.2,2040.4,4.80318458]
[1773121601312,4.03188562,2041.0,2040.4,4.80318458]
[1773121601614,11.75688562,2040.9,2040.4,4.80318458]
[1773121602311,4.03188562,2040.8,2040.4,4.80318458]
[1773121602513,4.03188562,2041.5,2040.4,4.80318458]
[1773121602811,4.03188562,2041.2,2040.4,4.80318458]
[1773121605519,4.03188562,2041.0,2040.4,4.80318458]
[1773121610017,7.736,2040.9,2040.4,4.80318458]
[1773121610417,4.03188562,2041.1,2040.4,4.80318458]
[1773121610818,11.76788562,2041.1,2040.4,4.80318458]
[1773121611020,4.03188562,2041.0,2040.4,4.80318458]
[1773121612123,11.76988562,2041.0,2040.4,4.80318458]
[1773121614319,4.07807018,2041.6,2040.4,4.80318458]
[1773121614626,4.03188562,2041.4,2040.4,4.80318458]
[1773121615923,3.98262392,2041.2,2040.4,4.80318458]
[1773121616923,3.98262392,2041.2,2040.1,11.4194304]
[1773121616924,3.36966077,2041.1,2040.1,11.4194304]
[1773121617228,3.36966077,2040.9,2040.1,3.73627429]
[1773121618029,3.36966077,2040.9,2040.1,3.74154805]
[1773121621936,3.05266077,2040.9,2040.1,3.74154805]
[1773121623527,2.99829135,2041.1,2040.2,2.68721684]
[1773121623732,2.99829135,2041.1,2040.3,4.11580159]
[1773121624033,7.751,2041.0,2040.3,4.11580159]
[1773121624236,2.99829135,2040.9,2040.3,4.11580159]
[1773121625638,7.751,2041.0,2040.3,4.11580159]
[1773121625639,7.753,2041.0,2040.3,4.11580159]
[1773121625934,7.753,2041.1,2040.3,4.11580159]
[1773121626138,2.98277163,2041.2,2040.3,4.11580159]
[1773121626438,7.754,2041.1,2040.3,4.11580159]
[1773121627035,10.72531799,2041.1,2040.3,4.11580159]
[1773121628338,10.72731799,2041.1,2040.3,4.11580159]
[1773121629239,2.97131799,2041.1,2040.3,4.11580159]
[1773121629438,10.72831799,2041.1,2040.3,4.11580159]
[1773121630237,2.97091449,2041.3,2040.6,4.11580159]
[1773121630539,10.72891449,2041.3,2040.6,4.11580159]
[1773121631136,10.72991449,2041.3,2040.6,4.11580159]
[1773121632140,2.97091449,2041.3,2040.6,4.11580159]
[1773121632341,7.76,2041.4,2040.6,4.11580159]
[1773121632835,10.73659123,2041.4,2040.6,4.11580159]
[1773121635142,3.0222439,2041.3,2040.6,4.11580159]
[1773121638744,2.96952581,2041.4,2040.6,4.11580159]
[1773121639041,10.73552581,2041.4,2040.6,4.11580159]
[1773121639843,2.96096389,2041.5,2040.8,3.84851043]
[1773121642840,2.83414576,2041.4,2040.8,3.84851043]
[1773121644444,5.52215583,2041.4,2040.8,3.84851043]
[1773121644640,2.82243901,2041.2,2040.7,3.91772207]
[1773121645144,2.82243901,2041.2,2040.5,3.91772207]
[1773121645449,2.81371141,2040.7,2040.1,3.92299583]
[1773121646846,2.81371141,2040.7,2040.2,3.91772207]
[1773121647039,10.60496569,2040.8,2040.2,3.91772207]
[1773121647238,2.82434059,2040.7,2040.2,3.91772207]
[1773121647642,2.82526322,2040.9,2040.2,3.91772207]
[1773121647944,7.61192946,2041.8,2040.4,3.91772207]
[1773121647945,2.82526322,2041.0,2040.4,3.91772207]
[1773121648140,2.82526322,2040.9,2040.4,3.91772207]
[1773121648340,2.82526322,2040.9,2040.2,3.91772207]
[1773121650252,10.59826322,2040.9,2040.3,3.91772207]
[1773121650550,2.99801399,2040.8,2040.3,3.91772207]
[1773121655556,2.99801399,2040.8,2040.1,3.81050245]
[1773121656357,2.98930745,2040.7,2040.1,3.81050245]
[1773121659655,2.96510746,2040.5,2040.1,0.00527376]
[1773121659861,2.96510746,2040.5,2040.0,3.80522869]
[1773121660758,2.96510746,2040.5,2040.0,3.80888217]
[1773121661161,2.95545925,2040.5,2040.0,3.80888217]
[1773121661960,2.95545925,2040.5,2040.0,0.00365348]
[1773121662160,2.95545925,2040.5,2040.0,3.80888217]
[1773121663162,3.82016168,2040.3,2039.8,3.80522869]
[1773121663563,3.81163958,2040.2,2039.8,3.80522869]
[1773121664259,0.00345402,2040.2,2039.8,3.8092948]
[1773121665061,3.87558364,2040.2,2039.8,3.8092948]
[1773121666875,0.00345402,2040.2,2039.8,3.8092948]
[1773121668275,3.84370418,2040.2,2039.8,3.8092948]
[1773121670277,3.84370418,2040.2,2039.8,2.37508074]
[1773121670983,3.84370418,2040.2,2039.8,0.00406611]
[1773121671183,3.84370418,2040.2,2039.8,3.8092948]
[1773121671680,3.88907066,2040.2,2039.8,3.8092948]
[1773121672473,3.88907066,2040.2,2039.8,1.90178113]
[1773121672680,3.88907066,2040.2,2039.7,3.80522869]
[1773121673181,3.88907066,2040.2,2039.5,3.80522869]
[1773121673387,3.88561664,2039.8,2039.3,7.68315611]
[1773121673581,11.68961664,2039.7,2039.2,3.80522869]
[1773121673881,11.69061664,2039.8,2039.4,3.80522869]
[1773121674073,3.88561664,2040.1,2039.5,2.68801007]
[1773121674273,7.806,2040.0,2039.6,3.80522869]
[1773121674473,3.74388807,2040.0,2039.6,3.81072421]
[1773121674679,11.54988807,2040.1,2039.6,3.81072421]
[1773121675184,3.74388807,2040.0,2039.6,3.81072421]
[1773121675982,11.55634209,2040.2,2039.6,3.81072421]
[1773121676285,3.74388807,2040.1,2039.6,3.81072421]
[1773121676485,3.74388807,2040.1,2039.6,3.99668865]
[1773121677689,11.55688807,2040.0,2039.6,3.99668865]
[1773121678686,3.74388807,2039.9,2039.6,3.99668865]
[1773121679178,11.55688807,2040.0,2039.6,3.99668865]
[1773121680686,3.74388807,2039.9,2039.6,3.99668865]
[1773121680889,11.55688807,2040.0,2039.6,3.99668865]
[1773121681082,3.74388807,2039.9,2039.6,3.99668865]
[1773121681288,3.74388807,2039.9,2039.6,0.00549552]
[1773121682189,3.74388807,2039.9,2039.6,3.99668865]
[1773121682589,0.00345402,2040.2,2039.6,3.99668865]
[1773121682787,3.74388807,2040.6,2040.0,3.99119313]
[1773121682986,3.74388807,2040.4,2040.0,3.99119313]
[1773121683789,3.74798149,2040.4,2040.0,3.99119313]
[1773121684490,11.57598149,2040.4,2040.0,3.99119313]
[1773121685693,3.72949863,2040.5,2040.0,3.99119313]
[1773121686194,3.72949863,2040.4,2040.0,3.99119313]
[1773121686789,3.73313827,2040.4,2040.0,3.99119313]
[1773121687893,3.72949863,2040.6,2040.1,2.68801007]
[1773121688089,2.68801007,2041.1,2040.1,2.68801007]
[1773121688090,3.72949863,2040.7,2040.4,3.62963951]
[1773121688389,3.60219456,2040.8,2040.4,3.62963951]
[1773121688886,3.60791397,2040.8,2040.4,3.62963951]
[1773121689090,3.60219456,2040.9,2040.4,3.62963951]
[1773121690189,3.60820548,2040.9,2040.4,3.62963951]
[1773121692285,0.00601092,2040.9,2040.6,3.93813184]
[1773121692584,3.60219456,2041.0,2040.6,3.93813184]
[1773121692790,11.44819456,2041.0,2040.6,3.93813184]
[1773121692985,3.60219456,2040.9,2040.6,3.93813184]
[1773121693190,3.60219456,2040.9,2040.1,2.68801007]
[1773121693191,3.60219456,2040.9,2040.4,3.93813184]
[1773121693391,3.60837345,2040.9,2040.4,3.93813184]
[1773121694386,3.60837345,2040.9,2040.5,2.68801007]
[1773121694592,3.60837345,2040.9,2040.6,3.93813184]
[1773121694890,1.70687056,2040.9,2040.6,3.93813184]
[1773121695290,11.45519456,2041.0,2040.6,3.93813184]
[1773121695693,3.60219456,2041.0,2040.6,3.93813184]
[1773121695993,11.45619456,2041.0,2040.6,3.93813184]
[1773121696194,3.60219456,2040.9,2040.6,3.93813184]
[1773121699195,3.60219456,2041.2,2040.8,3.93813184]
[1773121699402,11.46419456,2041.3,2040.9,2.68801007]
[1773121699600,3.60219456,2041.3,2041.0,3.93813184]
[1773121699801,11.46519456,2041.4,2041.0,3.93813184]
[1773121700303,3.60728824,2041.4,2041.0,3.93813184]
[1773121700496,0.00509368,2041.4,2041.0,3.93813184]
[1773121700696,7.87009368,2041.4,2041.0,3.93813184]
[1773121701099,2.68801007,2042.0,2041.2,3.93813184]
[1773121701401,3.60219456,2041.8,2041.2,3.93813184]
[1773121701602,11.46919456,2041.7,2041.2,3.93813184]
[1773121702194,3.60590428,2041.7,2041.2,3.94268008]
[1773121702599,3.60590428,2041.7,2041.3,2.68801007]